fUSD/lending_fUSD_20250703
["ID","MTS","AMOUNT","RATE_DAILY","PERIOD"]
[369146964,1751501454568,-684.499913,0.00024002,7]
[369146965,1751501454578,-684.499913,0.00024002,7]
[369146966,1751501454587,-684.499913,0.00024002,7]
[369146967,1751501454597,-319.316278,0.00024002,7]
[369146968,1751501454606,-319.316278,0.00024002,7]
[369146969,1751501454616,-157.564416,0.00024002,7]
[369146970,1751501454625,-157.564416,0.00024002,7]
[369146971,1751501454634,-151.0,0.00024002,7]
[369146972,1751501454644,-151.0,0.00024002,7]
[369146973,1751501454653,-280.522502,0.00024002,7]
[369146974,1751501454662,-280.522502,0.00024002,7]
[369146975,1751501454672,-151.0,0.00024002,7]
[369146976,1751501454681,-151.0,0.00024002,7]
[369146977,1751501454690,-151.0,0.00024002,7]
[369146978,1751501454702,-151.0,0.00024002,7]
[369146979,1751501454712,-193.528007,0.00024002,7]
[369146980,1751501454721,-223.379236,0.00024002,7]
[369146981,1751501454731,-193.528007,0.00024002,7]
[369146982,1751501454741,-223.379236,0.00024002,7]
[369146983,1751501454751,-151.0,0.00024004,7]
[369146984,1751501454760,-182.865412,0.00024004,7]
[369146985,1751501454769,-182.865412,0.00024004,7]
[369146986,1751501454780,-174.375137,0.00024004,7]
[369146987,1751501454790,-174.375137,0.00024004,7]
[369146988,1751501454799,-323.075993,0.00024004,7]
[369146989,1751501454809,-323.075993,0.00024004,7]
[369146990,1751501454819,-151.0,0.00024004,7]
[369146991,1751501454828,-151.0,0.00024004,7]
[369146992,1751501454839,-151.0,0.00024008,7]
[369146993,1751501454849,-151.0,0.00024008,7]
[369146994,1751501454859,-151.0,0.00024008,7]
[369146995,1751501454870,-151.0,0.00024008,7]
[369146996,1751501454880,-151.0,0.00024008,7]
[369146997,1751501454889,-152.332313,0.00024008,7]
[369146998,1751501454898,-152.332313,0.00024008,7]
[369146999,1751501454907,-151.0,0.00024008,7]
[369147000,1751501454916,-182.865412,0.00024008,7]
[369147001,1751501454926,-182.865412,0.00024008,7]
[369147002,1751501454936,-151.0,0.00024008,7]
[369147003,1751501454945,-184.079485,0.00024008,7]
[369147004,1751501454955,-184.079485,0.00024008,7]
[369147005,1751501454964,-151.0,0.00024008,7]
[369147006,1751501454974,-174.375137,0.00024008,7]
[369147007,1751501454983,-174.375137,0.00024008,7]
[369147008,1751501454993,-329.273776,0.00024008,7]
[369147009,1751501455002,-329.273776,0.00024008,7]
[369147010,1751501455012,-231.597231,0.00024008,7]
[369147011,1751501455022,-231.597231,0.00024008,7]
[369147012,1751501455031,-482.992374,0.00024008,7]
[369147013,1751501455041,-482.992374,0.00024008,7]
[369147014,1751501455051,-216.188513,0.00024008,7]
[369147015,1751501455060,-216.188513,0.00024008,7]
[369147016,1751501455070,-151.0,0.00024008,7]
[369147017,1751501455079,-581.978281,0.00024008,7]
[369147018,1751501455089,-581.978281,0.00024008,7]
[369147019,1751501455098,-151.0,0.00024008,7]
[369147020,1751501455107,-151.0,0.00024008,7]
[369147021,1751501455116,-1608.419006,0.00024008,7]
[369147022,1751501455126,-1608.419014,0.00024008,7]
[369147023,1751501455136,-151.0,0.00024008,7]
[369147024,1751501455146,-280.843586,0.00024008,7]
[369147025,1751501455155,-280.843596,0.00024008,7]
[369147026,1751501455165,-180.026547,0.00024008,7]
[369147027,1751501455174,-180.026547,0.00024008,7]
[369147028,1751501455184,-564.221864,0.00024018,7]
[369147029,1751501455401,-564.221864,0.00024018,7]
[369147030,1751501455435,-500.0,0.00024019,2]
[369147031,1751501455445,-150.0,0.00024021,2]
[369147032,1751501455455,-242.79132121,0.00024022,2]
[369147033,1751501455464,-1606.433,0.00024025,5]
[369147034,1751501455474,-150.0,0.00024045,2]
[369147035,1751501455484,-500.0,0.00024046,2]
[369147036,1751501455494,-1680.0,0.00024048,2]
[369147037,1751501455504,-244.505374,0.0002405,7]
[369147038,1751501455514,-244.505384,0.0002405,7]
[369147039,1751501455523,-238.627013,0.0002405,7]
[369147040,1751501455533,-238.627013,0.0002405,7]
[369147041,1751501455542,-528.900854,0.0002405,7]
[369147042,1751501455552,-528.900854,0.0002405,7]
[369147043,1751501455562,-157.564416,0.0002405,7]
[369147044,1751501455572,-157.564416,0.0002405,7]
[369147045,1751501455582,-500.0,0.00024073,2]
[369147046,1751501455592,-7312.55185796,0.00024082,2]
[369147047,1751501455602,-150.0,0.00024084,2]
[369147048,1751501455612,-182.23807,0.00024096,7]
[369147049,1751501455622,-182.23807,0.00024096,7]
[369147050,1751501455632,-151.0,0.00024096,7]
[369147051,1751501455642,-396.112675,0.00024096,7]
[369147052,1751501455651,-396.112675,0.00024096,7]
[369147053,1751501455661,-299.939567,0.00024096,7]
[369147054,1751501455670,-299.939567,0.00024096,7]
[369147055,1751501455680,-151.0,0.00024096,7]
[369147056,1751501455689,-280.522502,0.00024096,7]
[369147057,1751501455701,-280.522502,0.00024096,7]
[369147058,1751501455711,-1089.0,0.000241,2]
[369147059,1751501455721,-500.0,0.00024101,2]
[369147060,1751501455730,-150.0,0.00024127,2]
[369147061,1751501455740,-500.0,0.00024128,2]
[369147062,1751501455749,-622.137778,0.00024151,7]
[369147063,1751501455759,-622.137778,0.00024151,7]
[369147064,1751501455769,-9504.15038,0.00024151,7]
[369147065,1751501455780,-9504.15038,0.00024151,7]
[369147066,1751501455789,-284.388367,0.00024151,7]
[369147067,1751501455799,-284.388367,0.00024151,7]
[369147068,1751501455810,-684.499913,0.00024151,7]
[369147069,1751501455819,-684.499913,0.00024151,7]
[369147070,1751501455829,-151.0,0.00024151,7]
[369147071,1751501455838,-151.0,0.00024151,7]
[369147072,1751501455848,-282.0,0.00024151,7]
[369147073,1751501455858,-193.528007,0.00024151,7]
[369147074,1751501455867,-223.379236,0.00024151,7]
[369147075,1751501455877,-193.528007,0.00024151,7]
[369147076,1751501455887,-223.379236,0.00024151,7]
[369147077,1751501455896,-500.0,0.00024156,2]
[369147078,1751501455908,-150.0,0.0002416,2]
[369147079,1751501455919,-181.0,0.00024164,7]
[369147080,1751501455929,-215.0738,0.00024168,2]
[369147081,1751501455939,-311.1,0.00024168,2]
[369147082,1751501455950,-16668.42669356,0.00024175,2]
[369147083,1751501455960,-500.0,0.00024183,2]
[369147084,1751501455970,-323.076165,0.00024188,7]
[369147085,1751501455980,-323.076165,0.00024188,7]
[369147086,1751501455989,-151.0,0.00024188,7]
[369147087,1751501455999,-220.003936,0.00024188,7]
[369147088,1751501456009,-171.701269,0.00024188,7]
[369147089,1751501456018,-220.003936,0.00024188,7]
[369147090,1751501456028,-171.701269,0.00024188,7]
[369147091,1751501456038,-186.655,0.00024188,7]
[369147092,1751501456047,-186.655,0.00024188,7]
[369147093,1751501456057,-2511.196985,0.00024188,7]
[369147094,1751501456067,-2511.196985,0.00024188,7]
[369147095,1751501456077,-151.0,0.00024188,7]
[369147096,1751501456086,-1959.765421,0.00024188,7]
[369147097,1751501456095,-1959.765421,0.00024188,7]
[369147098,1751501456104,-1981.810196,0.00024188,7]
[369147099,1751501456113,-1981.810196,0.00024188,7]
[369147100,1751501456123,-151.0,0.00024188,7]
[369147101,1751501456132,-404.015322,0.00024188,7]
[369147102,1751501456141,-404.015322,0.00024188,7]
[369147103,1751501456151,-151.0,0.00024188,7]
[369147104,1751501456160,-371.835101,0.00024188,7]
[369147105,1751501456169,-371.835101,0.00024188,7]
[369147106,1751501456178,-331.664122,0.00024188,7]
[369147107,1751501456187,-331.664122,0.00024188,7]
[369147108,1751501456197,-151.0,0.00024188,7]
[369147109,1751501456206,-1131.720116,0.00024188,7]
[369147110,1751501456216,-1131.720116,0.00024188,7]
[369147111,1751501456225,-431.175516,0.00024188,7]
[369147112,1751501456234,-431.175516,0.00024188,7]
[369147113,1751501456244,-232.936423,0.00024188,7]
[369147114,1751501456253,-232.936423,0.00024188,7]
[369147115,1751501456263,-304.939507,0.00024188,7]
[369147116,1751501456272,-304.939507,0.00024188,7]
[369147117,1751501456281,-1568.264699,0.00024188,7]
[369147118,1751501456291,-1568.264699,0.00024188,7]
[369147119,1751501456301,-402.373565,0.00024188,7]
[369147120,1751501456310,-402.373565,0.00024188,7]
[369147121,1751501456319,-151.0,0.00024188,7]
[369147122,1751501456329,-617.358828,0.00024188,7]
[369147123,1751501456338,-617.358828,0.00024188,7]
[369147124,1751501456348,-336.623846,0.00024188,7]
[369147125,1751501456358,-336.623846,0.00024188,7]
[369147126,1751501456367,-364.976019,0.00024188,7]
[369147127,1751501456376,-364.976019,0.00024188,7]
[369147128,1751501456385,-500.0,0.0002421,2]
[369147129,1751501456395,-150.0,0.00024225,2]
[369147130,1751501456405,-500.0,0.00024238,2]
[369147131,1751501456414,-7312.55185796,0.00024243,2]
[369147132,1751501456424,-572.934396,0.00024261,7]
[369147133,1751501456433,-572.934396,0.00024261,7]
[369147134,1751501456443,-500.0,0.00024265,2]
[369147135,1751501456452,-277.0,0.00024273,2]
[369147136,1751501456462,-500.0,0.00024273,2]
[369147137,1751501456471,-500.0,0.00024273,2]
[369147138,1751501456481,-500.0,0.00024273,2]
[369147139,1751501456490,-150.0,0.00024273,2]
[369147140,1751501456500,-500.0,0.00024273,2]
[369147141,1751501456509,-500.0,0.00024273,2]
[369147142,1751501456519,-150.0,0.00024273,2]
[369147143,1751501456528,-150.0,0.00024273,2]
[369147144,1751501456537,-500.0,0.00024273,2]
[369147145,1751501456547,-500.0,0.00024273,2]
[369147146,1751501456557,-250.0,0.00024273,2]
[369147147,1751501456567,-150.0,0.00024273,2]
[369147148,1751501456576,-1846.0,0.00024273,2]
[369147149,1751501456585,-200.0,0.00024273,2]
[369147150,1751501456595,-500.0,0.00024273,2]
[369147151,1751501456605,-816.0,0.00024273,2]
[369147152,1751501456615,-150.0,0.00024273,2]
[369147153,1751501456625,-150.0,0.00024273,2]
[369147154,1751501456635,-150.0,0.00024273,2]
[369147155,1751501456644,-150.0,0.00024273,2]
[369147156,1751501456653,-500.0,0.00024273,2]
[369147157,1751501456665,-500.0,0.00024273,2]
[369147158,1751501456674,-150.0,0.00024273,2]
[369147159,1751501456683,-150.0,0.00024273,2]
[369147160,1751501456693,-500.0,0.00024273,2]
[369147161,1751501456707,-285.2621651,0.00024273,2]
[369147162,1751501456717,-150.0,0.00024273,2]
[369147163,1751501456726,-550.0,0.00024273,2]
[369147164,1751501456735,-150.0,0.00024273,2]
[369147165,1751501456746,-184.079485,0.00024273,7]
[369147166,1751501456755,-184.079485,0.00024273,7]
[369147167,1751501456765,-329.273776,0.00024273,7]
[369147168,1751501456774,-329.273776,0.00024273,7]
[369147169,1751501456785,-320.680057,0.00024273,7]
[369147170,1751501456794,-320.680057,0.00024273,7]
[369147171,1751501456804,-216.188513,0.00024273,7]
[369147172,1751501456814,-216.188513,0.00024273,7]
[369147173,1751501456823,-151.0,0.00024273,7]
[369147174,1751501456833,-151.0,0.00024273,7]
[369147175,1751501456842,-151.0,0.00024273,7]
[369147176,1751501456852,-933.3938,0.00024273,7]
[369147177,1751501456862,-933.3938,0.00024273,7]
[369147178,1751501456871,-463.437699,0.00024273,7]
[369147179,1751501456880,-463.437699,0.00024273,7]
[369147180,1751501456890,-151.0,0.00024273,7]
[369147181,1751501456899,-152.886367,0.00024273,7]
[369147182,1751501456909,-213.154178,0.00024273,7]
[369147183,1751501456919,-213.154178,0.00024273,7]
[369147184,1751501456928,-493.858055,0.00024273,7]
[369147185,1751501456938,-493.858055,0.00024273,7]
[369147186,1751501456947,-151.0,0.00024273,7]
[369147187,1751501456956,-151.0,0.00024273,7]
[369147188,1751501456966,-535.780826,0.00024273,7]
[369147189,1751501456975,-535.780826,0.00024273,7]
[369147190,1751501456985,-216.133187,0.00024273,7]
[369147191,1751501456995,-216.133187,0.00024273,7]
[369147192,1751501457004,-864.301081,0.00024273,7]
[369147193,1751501457014,-864.301081,0.00024273,7]
[369147194,1751501457023,-714.547674,0.00024273,7]
[369147195,1751501457033,-714.547674,0.00024273,7]
[369147196,1751501457042,-2868.18314,0.00024273,7]
[369147197,1751501457052,-2868.18314,0.00024273,7]
[369147198,1751501457061,-244.214239,0.00024273,7]
[369147199,1751501457071,-244.214239,0.00024273,7]
[369147200,1751501457080,-151.0,0.00024273,7]
[369147201,1751501457089,-1170.718649,0.00024273,7]
[369147202,1751501457099,-1170.718649,0.00024273,7]
[369147203,1751501457108,-319.316278,0.00024273,7]
[369147204,1751501457118,-319.316278,0.00024273,7]
[369147205,1751501457128,-168.0,0.00024273,2]
[369147206,1751501457137,-151.0,0.00024274,7]
[369147207,1751501457146,-151.0,0.00024274,7]
[369147208,1751501457156,-231.597231,0.00024274,7]
[369147209,1751501457165,-231.597231,0.00024274,7]
[369147210,1751501457174,-581.978281,0.00024274,7]
[369147211,1751501457184,-581.978281,0.00024274,7]
[369147212,1751501457194,-564.221864,0.00024274,7]
[369147213,1751501457204,-564.221864,0.00024274,7]
[369147214,1751501457213,-323.075993,0.00024274,7]
[369147215,1751501457223,-323.075993,0.00024274,7]
[369147216,1751501457232,-151.0,0.00024274,7]
[369147217,1751501457241,-151.0,0.00024274,7]
[369147218,1751501457251,-150.0,0.00024274,2]
[369147219,1751501457260,-151.0,0.00024278,7]
[369147220,1751501457270,-182.865412,0.00024278,7]
[369147221,1751501457279,-182.865412,0.00024278,7]
[369147222,1751501457288,-174.375137,0.00024278,7]
[369147223,1751501457298,-174.375137,0.00024278,7]
[369147224,1751501457308,-500.0,0.00024293,2]
[369147225,1751501457317,-150.0,0.00024305,2]
[369147226,1751501457327,-182.23807,0.00024316,7]
[369147227,1751501457336,-182.23807,0.00024316,7]
[369147228,1751501457346,-151.0,0.00024316,7]
[369147229,1751501457355,-396.112675,0.00024316,7]
[369147230,1751501457364,-396.112675,0.00024316,7]
[369147231,1751501457374,-151.0,0.00024316,7]
[369147232,1751501457383,-500.0,0.0002432,2]
[369147233,1751501457393,-887.0,0.00024327,2]
[369147234,1751501457402,-1163.0,0.00024327,2]
[369147235,1751501457412,-4107.0,0.00024327,2]
[369147236,1751501457421,-301.555,0.00024327,2]
[369147237,1751501457431,-299.501,0.00024327,2]
[369147238,1751501457441,-7151.0,0.00024327,2]
[369147239,1751501457450,-911.347,0.00024327,2]
[369147240,1751501457460,-150.0,0.00024328,2]
[369147241,1751501457469,-150.0,0.00024332,2]
[369147242,1751501457478,-150.0,0.00024333,2]
[369147243,1751501457487,-781.21304018,0.00024333,2]
[369147244,1751501457497,-151.0,0.00024337,7]
[369147245,1751501457507,-303.454645,0.00024337,7]
[369147246,1751501457516,-303.454645,0.00024337,7]
[369147247,1751501457525,-927.184092,0.00024337,7]
[369147248,1751501457535,-927.184092,0.00024337,7]
[369147249,1751501457545,-150.0,0.00024338,2]
[369147250,1751501457554,-168.0,0.0002434,2]
[369147251,1751501457564,-150.0,0.00024341,2]
[369147252,1751501457573,-150.0,0.00024341,2]
[369147253,1751501457583,-150.0,0.00024342,2]
[369147254,1751501457593,-181.31768712,0.00024347,2]
[369147255,1751501457602,-150.0,0.00024349,2]
[369147256,1751501457612,-299.939567,0.00024361,7]
[369147257,1751501457621,-299.939567,0.00024361,7]
[369147258,1751501457631,-280.522502,0.00024361,7]
[369147259,1751501457641,-280.522502,0.00024361,7]
[369147260,1751501457650,-150.0,0.00024365,2]
[369147261,1751501457660,-323.076165,0.00024368,7]
[369147262,1751501457669,-323.076165,0.00024368,7]
[369147263,1751501457678,-933.3938,0.00024368,7]
[369147264,1751501457687,-933.3938,0.00024368,7]
[369147265,1751501457696,-220.003936,0.00024368,7]
[369147266,1751501457708,-171.701269,0.00024368,7]
[369147267,1751501457718,-220.003936,0.00024368,7]
[369147268,1751501457727,-171.701269,0.00024368,7]
[369147269,1751501457736,-463.437699,0.00024368,7]
[369147270,1751501457747,-463.437699,0.00024368,7]
[369147271,1751501457756,-622.137778,0.00024368,7]
[369147272,1751501457766,-622.137778,0.00024368,7]
[369147273,1751501457777,-9504.15038,0.00024368,7]
[369147274,1751501457787,-9504.15038,0.00024368,7]
[369147275,1751501457796,-284.388367,0.00024368,7]
[369147276,1751501457806,-284.388367,0.00024368,7]
[369147277,1751501457815,-238.627013,0.00024368,7]
[369147278,1751501457825,-150.0,0.00024368,2]
[369147279,1751501457835,-238.627013,0.00024368,7]
[369147280,1751501457844,-528.900854,0.00024368,7]
[369147281,1751501457853,-528.900854,0.00024368,7]
[369147282,1751501457863,-684.499913,0.00024368,7]
[369147283,1751501457872,-684.499913,0.00024368,7]
[369147284,1751501457881,-157.564416,0.00024368,7]
[369147285,1751501457891,-157.564416,0.00024368,7]
[369147286,1751501457901,-151.0,0.00024368,7]
[369147287,1751501457911,-151.0,0.00024368,7]
[369147288,1751501457921,-193.528007,0.00024368,7]
[369147289,1751501457930,-223.379236,0.00024368,7]
[369147290,1751501457940,-193.528007,0.00024368,7]
[369147291,1751501457949,-223.379236,0.00024368,7]
[369147292,1751501457959,-502.01101058,0.00024373,2]
[369147293,1751501457968,-150.0,0.0002438,2]
[369147294,1751501457978,-150.0,0.00024382,2]
[369147295,1751501457987,-150.0,0.00024389,2]
[369147296,1751501457996,-150.0,0.00024393,2]
[369147297,1751501458006,-150.0,0.00024394,2]
[369147298,1751501458016,-150.0,0.00024398,2]
[369147299,1751501458025,-150.0,0.00024398,2]
[369147300,1751501458035,-151.0,0.000244,7]
[369147301,1751501458044,-2511.196985,0.000244,7]
[369147302,1751501458053,-2511.196992,0.000244,7]
[369147303,1751501458063,-151.0,0.000244,7]
[369147304,1751501458073,-1959.765421,0.000244,7]
[369147305,1751501458082,-1959.765421,0.000244,7]
[369147306,1751501458092,-404.015322,0.000244,7]
[369147307,1751501458101,-404.015322,0.000244,7]
[369147308,1751501458110,-151.0,0.000244,7]
[369147309,1751501458120,-371.835101,0.000244,7]
[369147310,1751501458338,-371.835092,0.000244,7]
[369147311,1751501458348,-331.664122,0.000244,7]
[369147312,1751501458358,-331.664122,0.000244,7]
[369147313,1751501458367,-1131.720116,0.000244,7]
[369147314,1751501458376,-1131.720116,0.000244,7]
[369147315,1751501458385,-431.175516,0.000244,7]
[369147316,1751501458395,-431.175516,0.000244,7]
[369147317,1751501458404,-304.939507,0.000244,7]
[369147318,1751501458414,-304.939507,0.000244,7]
[369147319,1751501458423,-151.0,0.000244,7]
[369147320,1751501458432,-617.358828,0.000244,7]
[369147321,1751501458442,-617.358828,0.000244,7]
[369147322,1751501458452,-336.623846,0.000244,7]
[369147323,1751501458461,-336.623846,0.000244,7]
[369147324,1751501458471,-150.0,0.00024404,2]
[369147325,1751501458481,-7312.55185796,0.00024404,2]
[369147326,1751501458492,-150.0,0.00024407,2]
[369147327,1751501458502,-150.0,0.00024414,2]
[369147328,1751501458511,-150.0,0.00024425,2]
[369147329,1751501458521,-150.0,0.00024428,2]
[369147330,1751501458531,-150.0,0.00024429,2]
[369147331,1751501458542,-150.0,0.00024429,2]
[369147332,1751501458551,-150.0,0.00024432,2]
[369147333,1751501458562,-150.0,0.00024433,2]
[369147334,1751501458572,-150.0,0.00024441,2]
[369147335,1751501458583,-1000.0,0.00024443,2]
[369147336,1751501458594,-150.0,0.00024446,2]
[369147337,1751501458604,-150.0,0.00024447,2]
[369147338,1751501458613,-150.0,0.00024451,2]
[369147339,1751501458623,-150.0,0.00024457,2]
[369147340,1751501458632,-168.0,0.00024457,2]
[369147341,1751501458641,-150.0,0.00024458,2]
[369147342,1751501458652,-150.0,0.0002446,2]
[369147343,1751501458662,-150.0,0.00024461,2]
[369147344,1751501458671,-150.0,0.00024471,2]
[369147345,1751501458680,-1000.0,0.00024476,2]
[369147346,1751501458690,-150.0,0.00024482,2]
[369147347,1751501458701,-150.0,0.00024485,2]
[369147348,1751501458711,-151.0,0.0002449,7]
[369147349,1751501458720,-151.0,0.0002449,7]
[369147350,1751501458730,-151.0,0.0002449,7]
[369147351,1751501458739,-151.0,0.0002449,7]
[369147352,1751501458749,-267.450865,0.0002449,7]
[369147353,1751501458759,-267.450865,0.0002449,7]
[369147354,1751501458769,-151.0,0.0002449,7]
[369147355,1751501458778,-320.680057,0.0002449,7]
[369147356,1751501458787,-320.680057,0.0002449,7]
[369147357,1751501458797,-1568.264699,0.0002449,7]
[369147358,1751501458807,-1568.264699,0.0002449,7]
[369147359,1751501458816,-402.373565,0.0002449,7]
[369147360,1751501458826,-402.373565,0.0002449,7]
[369147361,1751501458835,-170.032057,0.00024491,7]
[369147362,1751501458844,-150.0,0.00024495,2]
[369147363,1751501458853,-535.780826,0.00024496,7]
[369147364,1751501458863,-535.780826,0.00024496,7]
[369147365,1751501458872,-864.301081,0.00024496,7]
[369147366,1751501458881,-864.301081,0.00024496,7]
[369147367,1751501458890,-535.780826,0.00024499,7]
[369147368,1751501458900,-535.780826,0.00024499,7]
[369147369,1751501458910,-864.301081,0.00024499,7]
[369147370,1751501458919,-864.301081,0.00024499,7]
[369147371,1751501458928,-221.746458,0.000245,7]
[369147372,1751501458937,-151.0,0.000245,7]
[369147373,1751501458947,-362.817573,0.000245,7]
[369147374,1751501458956,-362.817573,0.000245,7]
[369147375,1751501458965,-151.0,0.000245,7]
[369147376,1751501458974,-192.575987,0.000245,7]
[369147377,1751501458985,-151.0,0.000245,7]
[369147378,1751501458995,-151.0,0.000245,7]
[369147379,1751501459004,-151.0,0.000245,7]
[369147380,1751501459013,-151.0,0.000245,7]
[369147381,1751501459023,-151.0,0.000245,7]
[369147382,1751501459032,-151.0,0.000245,7]
[369147383,1751501459043,-151.0,0.000245,7]
[369147384,1751501459054,-151.0,0.000245,7]
[369147385,1751501459065,-296.808338,0.000245,7]
[369147386,1751501459075,-151.0,0.000245,7]
[369147387,1751501459084,-151.0,0.000245,7]
[369147388,1751501459094,-151.0,0.000245,7]
[369147389,1751501459103,-151.0,0.000245,7]
[369147390,1751501459114,-151.0,0.000245,7]
[369147391,1751501459124,-151.932541,0.000245,7]
[369147392,1751501459133,-151.0,0.000245,7]
[369147393,1751501459142,-151.0,0.000245,7]
[369147394,1751501459151,-151.0,0.000245,7]
[369147395,1751501459161,-151.0,0.000245,7]
[369147396,1751501459171,-232.078486,0.000245,7]
[369147397,1751501459180,-232.078486,0.000245,7]
[369147398,1751501459189,-363.369063,0.000245,7]
[369147399,1751501459198,-363.369063,0.000245,7]
[369147400,1751501459208,-158.973573,0.000245,7]
[369147401,1751501459217,-158.973573,0.000245,7]
[369147402,1751501459227,-151.0,0.000245,7]
[369147403,1751501459236,-248.610674,0.000245,7]
[369147404,1751501459245,-151.0,0.000245,7]
[369147405,1751501459255,-151.0,0.000245,7]
[369147406,1751501459264,-151.0,0.000245,7]
[369147407,1751501459273,-153.28152,0.000245,7]
[369147408,1751501459282,-151.0,0.000245,7]
[369147409,1751501459292,-181.885694,0.000245,7]
[369147410,1751501459301,-151.0,0.000245,7]
[369147411,1751501459310,-181.885694,0.000245,7]
[369147412,1751501459320,-151.0,0.000245,7]
[369147413,1751501459330,-151.0,0.000245,7]
[369147414,1751501459339,-266.529456,0.000245,7]
[369147415,1751501459348,-266.529456,0.000245,7]
[369147416,1751501459358,-151.0,0.000245,7]
[369147417,1751501459367,-151.0,0.000245,7]
[369147418,1751501459376,-214.25291,0.000245,7]
[369147419,1751501459386,-151.0,0.000245,7]
[369147420,1751501459395,-151.0,0.000245,7]
[369147421,1751501459405,-152.69015,0.000245,7]
[369147422,1751501459415,-151.0,0.000245,7]
[369147423,1751501459424,-152.182043,0.000245,7]
[369147424,1751501459434,-825.19966,0.000245,7]
[369147425,1751501459443,-825.19966,0.000245,7]
[369147426,1751501459452,-267.450865,0.000245,7]
[369147427,1751501459461,-151.0,0.000245,7]
[369147428,1751501459471,-267.450865,0.000245,7]
[369147429,1751501459480,-218.48147,0.000245,7]
[369147430,1751501459489,-218.48147,0.000245,7]
[369147431,1751501459499,-152.332313,0.000245,7]
[369147432,1751501459508,-152.332313,0.000245,7]
[369147433,1751501459517,-151.0,0.000245,7]
[369147434,1751501459527,-157.413273,0.000245,7]
[369147435,1751501459536,-151.0,0.000245,7]
[369147436,1751501459545,-151.0,0.000245,7]
[369147437,1751501459555,-182.865412,0.000245,7]
[369147438,1751501459564,-182.865412,0.000245,7]
[369147439,1751501459574,-182.865412,0.000245,7]
[369147440,1751501459585,-182.865412,0.000245,7]
[369147441,1751501459599,-151.0,0.000245,7]
[369147442,1751501459619,-151.0,0.000245,7]
[369147443,1751501459636,-184.079485,0.000245,7]
[369147444,1751501459656,-184.079485,0.000245,7]
[369147445,1751501459675,-184.079485,0.000245,7]
[369147446,1751501459692,-184.079485,0.000245,7]
[369147447,1751501459714,-151.0,0.000245,7]
[369147448,1751501459733,-151.0,0.000245,7]
[369147449,1751501459753,-174.375137,0.000245,7]
[369147450,1751501459770,-174.375137,0.000245,7]
[369147451,1751501459790,-174.375137,0.000245,7]
[369147452,1751501459806,-174.375137,0.000245,7]
[369147453,1751501459822,-329.273776,0.000245,7]
[369147454,1751501459839,-329.273776,0.000245,7]
[369147455,1751501459857,-329.273776,0.000245,7]
[369147456,1751501459872,-329.273776,0.000245,7]
[369147457,1751501459887,-231.597231,0.000245,7]
[369147458,1751501459903,-231.597231,0.000245,7]
[369147459,1751501459919,-231.597231,0.000245,7]
[369147460,1751501459936,-231.597231,0.000245,7]
[369147461,1751501459952,-482.992374,0.000245,7]
[369147462,1751501459968,-482.992374,0.000245,7]
[369147463,1751501459983,-320.680057,0.000245,7]